bitfinex-derivatives/quotes_SOLF0:USTF0_20251026
["timestamp","ask_amount","ask_price","bid_price","bid_amount"]
[1761497307993,8.92299818,199.33,199.18,2.8]
[1761497308496,8.92299818,199.33,199.19,2.8]
[1761497308987,12.56091372,199.33,199.19,2.8]
[1761497309193,7.89683373,199.32,199.19,2.8]
[1761497309394,3.63791554,199.31,199.19,2.8]
[1761497309694,4.25891819,199.32,199.19,2.8]
[1761497309887,8.92299818,199.33,199.19,2.8]
[1761497310291,8.30199553,199.32,199.2,2.8]
[1761497310487,7.89683373,199.31,199.2,2.8]
[1761497310688,3.63791554,199.3,199.2,2.8]
[1761497310894,4.26238857,199.32,199.2,2.8]
[1761497311094,8.92646856,199.33,199.2,2.8]
[1761497312493,8.30199553,199.32,199.2,2.8]
[1761497312693,4.26238857,199.31,199.2,2.8]
[1761497312887,4.66407999,199.32,199.2,2.8]
[1761497313093,3.63791554,199.31,199.2,2.8]
[1761497313395,4.26238857,199.32,199.2,2.8]
[1761497313695,4.66407999,199.32,199.2,2.8]
[1761497313895,3.63791554,199.31,199.2,2.8]
[1761497314191,12.5643841,199.32,199.2,2.8]
[1761497314398,7.90030411,199.31,199.2,2.8]
[1761497314596,3.63791554,199.3,199.2,2.8]
[1761497314984,4.26238857,199.31,199.24,0.03329263]
[1761497315497,12.5643841,199.32,199.24,0.03329263]
[1761497315691,4.26238857,199.31,199.24,0.03329263]
[1761497315894,4.66345993,199.32,199.24,0.03329263]
[1761497316090,8.30670254,199.32,199.24,0.03329263]
[1761497316395,12.56909111,199.31,199.24,0.03329263]
[1761497316699,7.90563118,199.3,199.24,0.03329263]
[1761497316899,3.64324261,199.29,199.24,0.03329263]
[1761497317198,4.26238857,199.3,199.24,0.03329263]
[1761497317699,12.56909111,199.31,199.24,0.03329263]
[1761497317894,7.90563118,199.3,199.24,0.03329263]
[1761497318096,3.64324261,199.29,199.24,0.03329263]
[1761497318294,7.90563118,199.3,199.24,0.03329263]
[1761497319493,12.56909111,199.3,199.24,0.03329263]
[1761497319690,7.90563118,199.29,199.24,2.60329263]
[1761497319890,3.64324261,199.28,199.24,2.60329263]
[1761497320191,7.90563118,199.29,199.24,0.03329263]
[1761497322395,3.64324261,199.28,199.24,0.03329263]
[1761497322595,3.64324261,199.28,199.24,2.60329263]
[1761497323403,3.64324261,199.27,199.24,2.60329263]
[1761497323602,3.64324261,199.28,199.24,2.60329263]
[1761497323800,3.64324261,199.27,199.24,2.60329263]
[1761497323997,3.64324261,199.28,199.24,2.60329263]
[1761497324399,3.64324261,199.27,199.24,2.60329263]
[1761497324594,3.64324261,199.28,199.24,2.60329263]
[1761497324793,3.64324261,199.27,199.24,2.60329263]
[1761497324990,3.64324261,199.28,199.24,2.60329263]
[1761497325194,3.64324261,199.27,199.24,2.60329263]
[1761497325395,3.64324261,199.28,199.24,2.60329263]
[1761497325590,3.64324261,199.27,199.24,2.60329263]
[1761497325793,3.64324261,199.28,199.24,2.60329263]
[1761497325990,3.64324261,199.27,199.24,2.60329263]
[1761497326197,3.64324261,199.26,199.24,0.03329263]
[1761497326397,3.64324261,199.25,199.24,0.03329263]
[1761497326605,3.64324261,199.27,199.24,0.03329263]
[1761497326805,3.64324261,199.26,199.24,0.03329263]
[1761497326997,3.64324261,199.27,199.24,0.03329263]
[1761497327198,3.64324261,199.26,199.24,0.03329263]
[1761497327399,3.64324261,199.25,199.24,2.60329263]
[1761497331002,3.64324261,199.25,199.24,0.03329263]
[1761497331907,3.64324261,199.25,199.24,2.60329263]
[1761497333104,27.54,199.39,199.24,2.60329263]
[1761497333105,7.99732749,199.29,199.24,2.60329263]
[1761497333309,7.99732749,199.28,199.24,2.60329263]
[1761497333509,3.64324261,199.27,199.24,2.60329263]
[1761497333705,3.64324261,199.26,199.24,2.60329263]
[1761497333904,3.64324261,199.29,199.24,2.57]
[1761497334104,3.64324261,199.28,199.24,2.57]
[1761497334306,3.64324261,199.27,199.24,2.57]
[1761497334612,3.64324261,199.26,199.24,2.57]
[1761497334807,3.64324261,199.29,199.24,2.57]
[1761497335004,3.64324261,199.28,199.24,2.57]
[1761497335198,3.64324261,199.27,199.24,2.57]
[1761497335402,3.64324261,199.29,199.24,2.57]
[1761497335605,3.64324261,199.28,199.24,2.57]
[1761497335805,3.64324261,199.27,199.24,2.57]
[1761497336109,3.64324261,199.29,199.24,2.57]
[1761497336310,3.64324261,199.28,199.24,2.57]
[1761497336515,3.64324261,199.27,199.24,2.57]
[1761497336710,3.64324261,199.29,199.24,2.57]
[1761497336916,3.64324261,199.28,199.24,2.57]
[1761497337108,7.99677032,199.29,199.24,2.57]
[1761497337306,3.64324261,199.28,199.24,2.57]
[1761497337506,3.64324261,199.31,199.27,2.57]
[1761497337702,12.37954222,199.45,199.27,2.57]
[1761497337703,7.78972823,199.34,199.27,2.57]
[1761497337899,4.66345993,199.36,199.29,4.5154]
[1761497338113,4.66345993,199.37,199.3,2.57]
[1761497338309,9.01346668,199.37,199.3,2.57]
[1761497338506,4.35000675,199.36,199.3,2.57]
[1761497338810,4.66345993,199.37,199.3,2.57]
[1761497339009,9.01346668,199.37,199.3,2.57]
[1761497339202,4.35000675,199.36,199.3,2.57]
[1761497339511,4.35000675,199.37,199.3,2.57]
[1761497339715,9.01346668,199.38,199.3,2.57]
[1761497339912,4.35000675,199.37,199.3,2.57]
[1761497340212,4.35000675,199.38,199.3,2.57]
[1761497340399,4.66345993,199.39,199.3,2.57]
[1761497340603,4.66345993,199.38,199.3,2.57]
[1761497341402,4.66345993,199.39,199.3,2.57]
[1761497341604,4.66345993,199.38,199.3,2.57]
[1761497341805,4.66345993,199.39,199.3,2.57]
[1761497342409,9.01346668,199.39,199.3,2.57]
[1761497342619,4.35000675,199.38,199.3,2.57]
[1761497342810,4.66345993,199.39,199.3,2.57]
[1761497343411,4.66345993,199.39,199.18,18.4220776]
[1761497343412,9.01346668,199.39,199.26,4.5162]
[1761497343611,4.66345993,199.36,199.27,2.78]
[1761497345513,9.01346668,199.38,199.27,2.78]
[1761497345704,4.35000675,199.37,199.27,2.78]
[1761497345907,4.66345993,199.38,199.27,2.78]
[1761497347009,4.66345993,199.36,199.27,2.78]
[1761497348213,4.66345993,199.37,199.27,2.78]
[1761497348511,4.66345993,199.35,199.24,2.78]
[1761497348713,4.66345993,199.35,199.17,20.82]
[1761497348714,4.66345993,199.32,199.18,2.71]
[1761497348907,4.66345993,199.33,199.18,2.71]
[1761497349310,4.66345993,199.32,199.18,2.71]
[1761497349710,3.62841812,199.31,199.18,2.71]
[1761497349909,7.97842487,199.31,199.18,2.71]
[1761497350215,7.97842487,199.3,199.18,2.71]
[1761497350516,3.62841812,199.29,199.18,2.71]
[1761497350720,7.96375517,199.32,199.18,2.71]
[1761497351011,3.62841812,199.31,199.23,2.71]
[1761497353620,7.96375517,199.31,199.23,2.71]
[1761497353917,3.62841812,199.3,199.23,2.71]
[1761497355715,3.62841812,199.29,199.2,7.2276]
[1761497355919,12.6272151,199.3,199.2,7.2276]
[1761497356104,7.96375517,199.29,199.2,7.2276]
[1761497356309,3.62841812,199.28,199.2,7.2276]
[1761497356504,3.62841812,199.27,199.2,2.71]
[1761497356719,7.96375517,199.28,199.2,2.71]
[1761497356924,3.62841812,199.27,199.2,2.71]
[1761497357413,3.62841812,199.27,199.16,4.5186]
[1761497357616,3.62841812,199.27,199.17,2.71]
[1761497357821,7.96375517,199.27,199.17,2.71]
[1761497358120,3.62841812,199.26,199.17,2.71]
[1761497358619,3.62841812,199.25,199.17,2.71]
[1761497358819,7.96375517,199.26,199.17,2.71]
[1761497359119,7.96375517,199.25,199.17,2.71]
[1761497359320,3.62841812,199.24,199.17,2.71]
[1761497359520,7.96553684,199.27,199.17,2.71]
[1761497359721,3.62841812,199.26,199.17,2.71]
[1761497360021,3.62841812,199.26,199.18,2.71]
[1761497363919,3.62841812,199.26,199.15,7.2288]
[1761497364125,7.96553684,199.26,199.16,2.71]
[1761497364426,3.62841812,199.25,199.16,2.71]
[1761497366427,7.96553684,199.25,199.16,2.71]
[1761497366629,7.96553684,199.24,199.16,2.71]
[1761497366820,3.62841812,199.23,199.16,2.71]
[1761497367021,7.96359233,199.26,199.16,2.71]
[1761497367229,3.62841812,199.25,199.16,2.71]
[1761497367429,7.96359233,199.26,199.16,2.71]
[1761497370230,3.62841812,199.25,199.16,2.71]
[1761497371333,3.62841812,199.25,199.18,2.71]
[1761497371519,7.96359233,199.25,199.18,2.71]
[1761497371829,3.62841812,199.24,199.18,2.71]
[1761497372022,7.96065678,199.27,199.18,2.71]
[1761497373333,3.62841812,199.26,199.18,2.71]
[1761497374122,7.96065678,199.26,199.18,2.71]
[1761497374326,3.62841812,199.25,199.18,2.71]
[1761497374526,4.33089029,199.28,199.18,2.71]
[1761497374932,12.62276834,199.29,199.18,2.71]
[1761497375128,7.95930841,199.28,199.18,2.71]
[1761497375432,3.62841812,199.27,199.18,2.71]
[1761497375834,4.33089029,199.28,199.18,2.71]
[1761497376030,4.66345993,199.29,199.18,2.71]
[1761497376231,12.62276834,199.29,199.18,2.71]
[1761497376430,7.95930841,199.28,199.18,2.71]
[1761497376630,3.62841812,199.27,199.18,2.71]
[1761497377029,4.33089029,199.28,199.18,2.71]
[1761497377540,12.62276834,199.29,199.18,2.71]
[1761497377731,7.95930841,199.28,199.18,2.71]
[1761497377931,3.62841812,199.27,199.18,2.71]
[1761497381339,7.95930841,199.27,199.18,2.71]
[1761497381540,4.66345993,199.3,199.18,2.71]
[1761497381541,3.62841812,199.26,199.18,2.71]
[1761497381750,7.95842168,199.29,199.18,2.71]
[1761497382148,12.62188161,199.29,199.18,2.71]
[1761497382341,7.95842168,199.28,199.18,2.71]
[1761497382541,7.95842168,199.27,199.18,2.71]
[1761497382750,3.62841812,199.26,199.18,2.71]
[1761497382936,4.33018097,199.28,199.18,2.71]
[1761497383137,4.66345993,199.29,199.18,2.71]
[1761497383345,12.62205902,199.29,199.18,2.71]
[1761497383542,7.95859909,199.28,199.18,2.71]
[1761497383750,3.62841812,199.27,199.18,2.71]
[1761497384249,7.95859909,199.28,199.19,2.82]
[1761497384448,7.95859909,199.27,199.19,2.82]
[1761497384650,3.62841812,199.26,199.19,2.82]
[1761497384851,7.96078969,199.29,199.19,2.82]
[1761497385248,3.62841812,199.28,199.19,2.82]
[1761497385550,7.96078969,199.29,199.19,2.82]
[1761497386242,3.62841812,199.28,199.19,2.82]
[1761497387443,7.96078969,199.28,199.19,2.82]
[1761497388356,3.62841812,199.27,199.19,2.82]
[1761497391144,3.62841812,199.26,199.19,2.82]
[1761497391348,3.62841812,199.27,199.19,2.82]
[1761497391548,3.62841812,199.26,199.19,2.82]
[1761497391754,3.62841812,199.27,199.19,2.82]
[1761497391946,3.62841812,199.26,199.19,2.82]
[1761497392147,3.62841812,199.25,199.19,2.82]
[1761497392342,3.62841812,199.27,199.19,2.82]
[1761497392547,3.62841812,199.26,199.19,2.82]
[1761497392748,3.62841812,199.25,199.19,2.82]
[1761497392949,3.62841812,199.26,199.19,2.82]
[1761497393149,3.63558996,199.25,199.19,2.82]
[1761497393352,7.96796153,199.27,199.19,2.82]
[1761497393664,3.63558996,199.26,199.19,2.82]
[1761497393858,3.63558996,199.25,199.19,2.82]
[1761497394060,3.63558996,199.26,199.21,2.82]
[1761497394251,3.63558996,199.25,199.21,2.82]
[1761497394453,3.63558996,199.24,199.21,2.82]
[1761497394654,3.63558996,199.26,199.21,2.82]
[1761497394852,3.63558996,199.25,199.21,2.82]
[1761497395063,3.63558996,199.24,199.21,2.82]
[1761497395256,3.63558996,199.26,199.21,2.82]
[1761497395452,3.63558996,199.25,199.21,2.82]
[1761497395648,3.63558996,199.24,199.21,2.82]
[1761497395853,3.63558996,199.26,199.21,2.82]
[1761497396048,3.63558996,199.25,199.21,2.82]
[1761497396253,3.63558996,199.24,199.21,2.82]
[1761497396453,3.63558996,199.26,199.21,2.82]
[1761497396655,3.63558996,199.25,199.21,2.82]
[1761497396959,3.63558996,199.24,199.21,2.82]
[1761497397160,3.63558996,199.26,199.21,2.82]
[1761497397354,3.63558996,199.25,199.21,2.82]
[1761497397554,3.63558996,199.24,199.21,2.82]
[1761497397757,3.63558996,199.26,199.21,2.82]
[1761497397957,3.63558996,199.25,199.21,2.82]
[1761497398156,3.63558996,199.24,199.21,2.82]
[1761497398361,3.63558996,199.26,199.21,2.82]
[1761497398561,3.63558996,199.25,199.21,2.82]
[1761497398762,3.63558996,199.24,199.21,2.82]
[1761497398963,7.98490784,199.25,199.21,2.82]
[1761497399163,3.63558996,199.24,199.21,2.82]
[1761497399350,7.98559278,199.27,199.21,2.82]
[1761497399554,3.63558996,199.26,199.21,2.82]
[1761497399754,3.63558996,199.25,199.21,2.82]
[1761497400063,3.63558996,199.24,199.21,2.82]
[1761497400361,3.63558996,199.23,199.21,2.82]
[1761497400557,3.63558996,199.25,199.21,2.82]
[1761497400761,3.63558996,199.24,199.21,2.82]
[1761497401057,3.63558996,199.23,199.21,2.82]
[1761497401257,3.63558996,199.25,199.21,2.82]
[1761497401459,3.63558996,199.24,199.21,2.82]
[1761497401661,3.63558996,199.23,199.21,2.82]
[1761497401856,3.63558996,199.24,199.21,2.82]
[1761497402057,7.98622649,199.27,199.22,2.82]
[1761497402263,3.63558996,199.26,199.22,2.82]
[1761497402463,3.63558996,199.25,199.22,2.82]
[1761497402663,3.63558996,199.24,199.22,2.82]
[1761497402864,3.63558996,199.26,199.22,2.82]
[1761497403062,3.63558996,199.25,199.23,2.74]
[1761497403262,3.63558996,199.24,199.23,2.74]
[1761497403461,3.63558996,199.25,199.23,2.74]
[1761497403664,7.98551941,199.28,199.23,2.74]
[1761497403860,3.63558996,199.27,199.2,2.74]
[1761497404067,7.98551941,199.26,199.2,2.74]
[1761497404264,3.63558996,199.25,199.2,2.74]
[1761497404465,3.63558996,199.24,199.2,2.74]
[1761497404764,3.63558996,199.23,199.2,2.74]
[1761497404960,3.63558996,199.25,199.2,2.74]
[1761497405159,3.63558996,199.24,199.2,2.74]
[1761497405363,3.63558996,199.23,199.2,2.74]
[1761497405555,7.98551941,199.24,199.2,2.74]
[1761497405759,3.63558996,199.23,199.2,2.74]
[1761497405959,12.67536903,199.27,199.2,2.74]
[1761497406258,7.98572396,199.26,199.2,2.74]
[1761497406460,3.63558996,199.25,199.2,2.74]
[1761497406759,3.63558996,199.24,199.2,2.74]
[1761497406959,3.63558996,199.23,199.2,2.74]
[1761497407159,3.63558996,199.25,199.2,2.74]
[1761497407364,3.63558996,199.24,199.2,2.74]
[1761497407561,3.63558996,199.23,199.2,2.74]
[1761497407765,3.63558996,199.25,199.2,2.74]
[1761497407966,3.63558996,199.24,199.2,2.74]
[1761497408161,3.63558996,199.23,199.2,2.74]
[1761497408361,3.63558996,199.25,199.2,2.74]
[1761497408562,3.63558996,199.24,199.2,2.74]
[1761497408755,3.63558996,199.23,199.2,2.74]
[1761497408964,3.63558996,199.25,199.2,2.74]
[1761497409271,3.63558996,199.24,199.21,2.6]
[1761497409566,3.63558996,199.25,199.21,2.6]
[1761497409766,3.63558996,199.24,199.21,2.6]
[1761497409967,7.9877525,199.26,199.21,2.6]
[1761497410166,7.9877525,199.25,199.21,2.6]
[1761497410370,3.63558996,199.24,199.21,2.6]
[1761497410574,7.98780018,199.27,199.21,2.6]
[1761497410767,3.63558996,199.26,199.21,2.6]
[1761497410969,3.63558996,199.25,199.22,2.6]
[1761497411268,7.98780018,199.26,199.22,2.6]
[1761497411470,3.63558996,199.25,199.22,2.6]
[1761497411667,4.68964507,199.29,199.22,2.6]
[1761497411668,7.98726043,199.28,199.22,2.6]
[1761497411869,7.98726043,199.27,199.22,2.6]
[1761497412169,3.63558996,199.26,199.22,2.6]
[1761497412368,7.98715265,199.29,199.22,2.6]
[1761497412569,3.63558996,199.28,199.22,2.6]
[1761497412873,3.63558996,199.27,199.22,2.6]
[1761497413075,3.63558996,199.26,199.23,2.6]
[1761497413264,4.35156269,199.29,199.23,2.6]
[1761497413265,3.63558996,199.28,199.23,2.6]
[1761497413460,3.63558996,199.27,199.23,2.6]
[1761497413772,7.98715265,199.28,199.23,2.6]
[1761497414072,7.98690002,199.27,199.23,2.6]
[1761497414274,3.63558996,199.26,199.23,4.5169]
[1761497414472,7.98654363,199.3,199.24,2.6]
[1761497414671,3.63558996,199.29,199.24,2.6]
[1761497414864,3.63558996,199.28,199.24,2.6]
[1761497415064,3.63558996,199.29,199.24,2.6]
[1761497415266,3.63558996,199.28,199.24,2.6]
[1761497415571,7.98654363,199.3,199.24,2.6]
[1761497415875,7.98654363,199.29,199.24,2.6]
[1761497416074,3.63558996,199.28,199.24,2.6]
[1761497416274,7.98485182,199.31,199.24,2.6]
[1761497416465,3.63558996,199.3,199.24,2.6]
[1761497416669,3.63558996,199.29,199.24,2.6]
[1761497416973,3.63558996,199.28,199.24,2.6]
[1761497417172,3.63558996,199.3,199.24,2.6]
[1761497417373,3.63558996,199.29,199.24,7.1167]
[1761497417573,3.63558996,199.3,199.25,2.6]
[1761497417768,3.63558996,199.29,199.25,2.6]
[1761497418075,7.98485182,199.31,199.27,4.516]
[1761497418272,7.98485182,199.3,199.28,2.6]
[1761497418569,6.23221183,199.37,199.28,2.6]
[1761497418570,4.68964507,199.35,199.28,2.6]
[1761497418773,7.96918356,199.34,199.28,2.6]
[1761497418973,3.62101839,199.33,199.28,2.6]
[1761497419174,3.62101839,199.32,199.28,2.6]
[1761497419369,3.62101839,199.33,199.28,2.6]
[1761497419570,3.62101839,199.32,199.28,2.6]
[1761497419769,4.34816517,199.34,199.28,2.6]
[1761497419770,3.62101839,199.33,199.28,2.6]
[1761497419976,3.62101839,199.32,199.28,2.6]
[1761497420169,3.62101839,199.33,199.28,2.6]
[1761497420566,7.96918356,199.33,199.28,2.6]
[1761497420874,7.96918356,199.32,199.28,2.6]
[1761497421074,3.62101839,199.31,199.28,2.6]
[1761497421378,7.96522362,199.35,199.28,2.6]
[1761497421579,3.62101839,199.34,199.28,2.6]
[1761497421778,3.62101839,199.33,199.28,2.6]
[1761497422078,3.62101839,199.34,199.28,2.6]
[1761497422470,3.62101839,199.35,199.28,2.6]
[1761497422672,3.62101839,199.34,199.28,2.6]
[1761497422867,3.62101839,199.35,199.28,2.6]
[1761497423072,3.62101839,199.34,199.28,2.6]
[1761497423278,3.62101839,199.35,199.28,2.6]
[1761497425975,4.5146,199.34,199.28,2.6]
[1761497426273,3.62101839,199.33,199.28,2.6]
[1761497438582,7.95806331,199.33,199.24,2.82]
[1761497438778,7.95806331,199.32,199.24,2.82]
[1761497438979,3.62101839,199.31,199.24,2.82]
[1761497439181,12.64787109,199.34,199.24,2.82]
[1761497439385,7.95822602,199.33,199.24,2.82]
[1761497439690,3.62101839,199.32,199.24,2.82]
[1761497439890,7.95822602,199.32,199.16,26.58]
[1761497440076,3.62101839,199.31,199.22,4.5171]
[1761497440278,3.62101839,199.31,199.22,7.3371]
[1761497442290,3.62101839,199.31,199.23,2.82]
[1761497443585,3.62101839,199.31,199.2,2.82]
[1761497443892,8.31066346,199.3,199.2,2.82]
[1761497444190,12.64787109,199.29,199.2,2.82]
[1761497444389,7.95822602,199.28,199.2,2.82]
[1761497444591,3.62101839,199.27,199.2,2.82]
[1761497445685,7.95822602,199.27,199.2,2.82]
[1761497445889,7.95822602,199.26,199.2,2.82]
[1761497446083,3.62101839,199.25,199.2,2.82]
[1761497446288,7.96089087,199.29,199.2,2.82]
[1761497446596,3.62101839,199.28,199.2,2.82]
[1761497446892,3.62101839,199.27,199.2,2.82]
[1761497447086,3.62101839,199.26,199.17,2.82]
[1761497447390,7.96089087,199.27,199.17,2.82]
[1761497447589,3.62101839,199.26,199.17,2.82]
[1761497457694,3.62101839,199.27,199.17,2.82]
[1761497460498,3.62101839,199.27,199.14,2.82]
[1761497460798,7.96100366,199.27,199.14,2.82]
[1761497460998,3.62101839,199.26,199.14,2.82]
[1761497461199,7.95432856,199.29,199.14,2.82]
[1761497461392,3.62101839,199.28,199.14,2.82]
[1761497462093,3.62101839,199.28,199.19,2.82]
[1761497464610,3.62101839,199.28,199.2,2.8]
[1761497465102,7.95432856,199.28,199.2,2.8]
[1761497465308,3.62101839,199.27,199.2,2.8]
[1761497465499,4.3319014,199.3,199.2,2.8]
[1761497465699,7.95291979,199.3,199.2,2.8]
[1761497466013,3.62101839,199.29,199.22,2.8]
[1761497468617,3.62101839,199.29,199.2,2.83]
[1761497468813,7.95291979,199.29,199.2,2.83]
[1761497469005,7.95291979,199.28,199.2,2.83]
[1761497469204,7.95291979,199.27,199.2,2.83]
[1761497469408,3.62101839,199.26,199.2,2.83]
[1761497469613,7.99355498,199.3,199.2,2.83]
[1761497469810,3.62101839,199.29,199.2,2.83]
[1761497472514,7.99355498,199.29,199.2,2.83]
[1761497472715,3.62101839,199.28,199.2,2.83]
[1761497473111,3.62101839,199.28,199.21,2.83]
[1761497473720,3.62101839,199.29,199.21,2.83]
[1761497474312,3.62101839,199.29,199.22,2.83]
[1761497474813,3.62101839,199.3,199.22,2.83]
[1761497475221,3.62101839,199.3,199.24,2.83]
[1761497477117,7.99721885,199.3,199.24,2.83]
[1761497477324,7.99721885,199.29,199.24,2.83]
[1761497477523,3.62101839,199.28,199.24,2.83]
[1761497477721,7.99873112,199.32,199.24,2.83]
[1761497477916,3.62101839,199.31,199.24,2.83]
[1761497480418,4.37771273,199.32,199.24,2.83]
[1761497480419,3.62101839,199.3,199.24,2.83]
[1761497480618,7.99873112,199.31,199.24,2.83]
[1761497480818,3.62101839,199.3,199.24,2.83]
[1761497481721,3.62101839,199.29,199.24,2.83]
[1761497481930,3.62101839,199.3,199.24,2.83]
[1761497482326,3.62101839,199.29,199.24,2.83]
[1761497482620,4.37771273,199.31,199.24,2.83]
[1761497482621,3.62101839,199.3,199.24,2.83]
[1761497482821,3.62101839,199.29,199.24,2.83]
[1761497483125,3.62101839,199.3,199.24,2.83]
[1761497483427,3.62101839,199.29,199.24,2.83]
[1761497483629,3.62101839,199.3,199.24,2.83]
[1761497483825,3.62101839,199.29,199.24,2.83]
[1761497484025,3.62101839,199.3,199.24,2.83]
[1761497484227,3.62101839,199.29,199.24,2.83]
[1761497484528,3.62101839,199.3,199.24,2.83]
[1761497484729,3.62101839,199.29,199.24,2.83]
[1761497485021,3.62101839,199.3,199.24,2.83]
[1761497485229,3.62101839,199.29,199.24,2.83]
[1761497485421,3.62101839,199.3,199.24,2.83]
[1761497485625,3.62101839,199.29,199.24,2.83]
[1761497485821,3.62101839,199.28,199.21,4.5173]
[1761497486129,3.62101839,199.29,199.21,2.83]
[1761497486327,3.62101839,199.28,199.21,2.83]
[1761497486625,4.37771273,199.3,199.21,2.83]
[1761497486626,3.62101839,199.27,199.21,2.83]
[1761497486823,7.99873112,199.29,199.21,2.83]
[1761497487014,3.62101839,199.28,199.21,2.83]
[1761497487215,3.62101839,199.27,199.21,2.83]
[1761497487424,3.62101839,199.28,199.21,2.83]
[1761497487625,3.62101839,199.27,199.21,2.83]
[1761497487829,3.62101839,199.26,199.21,2.83]
[1761497488026,3.62101839,199.28,199.21,2.83]
[1761497488225,3.62101839,199.27,199.21,2.83]
[1761497488428,3.62101839,199.26,199.21,2.83]
[1761497488630,7.99873112,199.28,199.21,2.83]
[1761497488930,3.62101839,199.27,199.21,2.83]
[1761497489129,3.62101839,199.26,199.21,2.83]
[1761497489331,7.99873112,199.28,199.21,2.83]
[1761497489530,7.99873112,199.27,199.21,2.83]
[1761497489726,7.99873112,199.26,199.21,2.83]
[1761497490029,6.23221183,199.32,199.21,2.83]
[1761497490030,3.62101839,199.25,199.21,2.83]
[1761497490230,8.00726077,199.28,199.21,2.83]
[1761497490430,3.62101839,199.27,199.21,2.83]
[1761497490629,3.62101839,199.26,199.21,2.83]
[1761497490932,8.00726077,199.27,199.21,2.83]
[1761497491139,8.00726077,199.26,199.21,2.83]
[1761497491331,3.62101839,199.25,199.21,2.83]
[1761497491532,8.00712865,199.29,199.21,2.83]
[1761497491725,3.62101839,199.28,199.21,2.83]
[1761497491925,3.62101839,199.27,199.21,2.83]
[1761497492227,3.62101839,199.26,199.22,2.83]
[1761497492425,3.62101839,199.28,199.22,2.83]
[1761497492626,3.62101839,199.27,199.22,2.83]
[1761497492937,3.62101839,199.26,199.22,2.83]
[1761497493126,3.62101839,199.28,199.22,2.83]
[1761497493328,3.62101839,199.27,199.22,2.83]
[1761497493627,3.62101839,199.28,199.22,2.83]
[1761497493829,3.62101839,199.27,199.22,2.83]
[1761497494030,3.62101839,199.28,199.22,2.83]
[1761497494224,3.62101839,199.27,199.22,2.83]
[1761497494421,3.62101839,199.26,199.22,2.83]
[1761497494633,3.62101839,199.28,199.22,2.83]
[1761497494936,3.62101839,199.27,199.22,2.83]
[1761497495129,3.62101839,199.26,199.22,2.83]
[1761497495329,3.62101839,199.25,199.22,2.83]
[1761497495529,3.62101839,199.27,199.22,2.83]
[1761497495732,3.62101839,199.26,199.22,2.83]
[1761497496030,3.62101839,199.25,199.22,2.83]
[1761497496230,3.62101839,199.27,199.22,2.83]
[1761497496431,3.62101839,199.26,199.22,2.83]
[1761497496631,3.62101839,199.25,199.22,2.83]
[1761497496834,3.62101839,199.27,199.22,2.83]
[1761497497021,3.62101839,199.26,199.22,2.83]
[1761497497220,3.62101839,199.25,199.22,2.83]
[1761497497430,8.00712865,199.27,199.22,2.83]
[1761497497733,8.00712865,199.26,199.2,4.5176]
[1761497497934,8.00712865,199.25,199.2,7.3476]
[1761497498136,3.62101839,199.24,199.2,7.3476]
[1761497498338,7.98286469,199.28,199.2,7.3476]
[1761497498631,3.62101839,199.27,199.2,7.3476]
[1761497498831,3.62101839,199.26,199.21,2.72]
[1761497499025,4.3618463,199.28,199.21,2.72]
[1761497499026,3.62101839,199.25,199.21,2.72]
[1761497499232,3.62101839,199.27,199.21,2.72]
[1761497499531,3.62101839,199.26,199.21,2.72]
[1761497499732,3.62101839,199.25,199.21,2.72]
[1761497499939,3.62101839,199.26,199.21,2.72]
[1761497500142,3.62101839,199.25,199.21,2.72]
[1761497500440,3.62101839,199.26,199.21,2.72]